[Event "*** Qualifier 3: Titled Tuesday 3|2 Blitz"]
[Site "Chess.com"]
[Date "2017.04.18"]
[Round "5"]
[White "Rock700chess"]
[Black "underdogchss"]
[Result "1-0"]
[WhiteElo "2238"]
[BlackElo "2401"]
[TimeControl "180+2"]
[EndTime "14:11:23 PDT"]
[Termination "Rock700chess won by resignation"]

1. e4 {[%clk 0:03:02]} 1... d6 {[%clk 0:02:47.2]} 2. d4 {[%clk 0:03:02.9]} 2...
Nf6 {[%clk 0:02:40.4]} 3. Nc3 {[%clk 0:03:04.5]} 3... g6 {[%clk 0:02:41.2]} 4.
Bc4 {[%clk 0:03:04.5]} 4... Bg7 {[%clk 0:02:37.3]} 5. f3 {[%clk 0:03:02.4]} 5...
O-O {[%clk 0:02:26.1]} 6. Be3 {[%clk 0:03:01.4]} 6... c6 {[%clk 0:02:13.2]} 7.
Nge2 {[%clk 0:03:02.9]} 7... d5 {[%clk 0:02:04.2]} 8. exd5 {[%clk 0:02:59.6]}
8... cxd5 {[%clk 0:02:05.1]} 9. Bb3 {[%clk 0:03:00.4]} 9... Nc6 {[%clk
0:02:05.4]} 10. Qd2 {[%clk 0:03:00.1]} 10... Na5 {[%clk 0:02:05.2]} 11. O-O
{[%clk 0:02:58.9]} 11... b6 {[%clk 0:01:58.1]} 12. Nf4 {[%clk 0:02:58.2]} 12...
e6 {[%clk 0:01:55.5]} 13. Rad1 {[%clk 0:02:58]} 13... Ba6 {[%clk 0:01:55.7]} 14.
Nd3 {[%clk 0:02:53.9]} 14... Rc8 {[%clk 0:01:47.2]} 15. Bg5 {[%clk 0:02:53.1]}
15... Nc4 {[%clk 0:01:36]} 16. Bxc4 {[%clk 0:02:52.5]} 16... Bxc4 {[%clk
0:01:36.8]} 17. Rfe1 {[%clk 0:02:53.3]} 17... Bxd3 {[%clk 0:01:36]} 18. Qxd3
{[%clk 0:02:52.7]} 18... Qc7 {[%clk 0:01:35.2]} 19. a3 {[%clk 0:02:49.4]} 19...
Nh5 {[%clk 0:01:35]} 20. g4 {[%clk 0:02:47.3]} 20... Nf4 {[%clk 0:01:30.6]} 21.
Qf1 {[%clk 0:02:48.4]} 21... h6 {[%clk 0:01:23.7]} 22. Bh4 {[%clk 0:02:47.9]}
22... Qc4 {[%clk 0:01:22.4]} 23. Bf2 {[%clk 0:02:46]} 23... Qxf1+ {[%clk
0:01:18.8]} 24. Kxf1 {[%clk 0:02:43.3]} 24... g5 {[%clk 0:01:07]} 25. Re3 {[%clk
0:02:38.4]} 25... Rc4 {[%clk 0:01:06.3]} 26. Ree1 {[%clk 0:02:36.3]} 26... a6
{[%clk 0:01:04.2]} 27. h4 {[%clk 0:02:35.9]} 27... Rfc8 {[%clk 0:01:04.8]} 28.
Be3 {[%clk 0:02:30.7]} 28... b5 {[%clk 0:01:01.4]} 29. Rd2 {[%clk 0:02:28.9]}
29... Bf6 {[%clk 0:00:52.5]} 30. h5 {[%clk 0:02:21.1]} 30... Kg7 {[%clk
0:00:52.1]} 31. Rc1 {[%clk 0:02:14.2]} 31... Rxc3 {[%clk 0:00:41.7]} 32. bxc3
{[%clk 0:02:12.9]} 32... Rxc3 {[%clk 0:00:43.6]} 33. Bxf4 {[%clk 0:02:12.3]}
33... gxf4 {[%clk 0:00:44.4]} 34. Rd3 {[%clk 0:02:11.9]} 34... Rc4 {[%clk
0:00:42.1]} 35. c3 {[%clk 0:02:11.8]} 35... Be7 {[%clk 0:00:41.5]} 36. Ra1
{[%clk 0:02:11.6]} 36... Ra4 {[%clk 0:00:42.4]} 37. Ke2 {[%clk 0:02:10.3]} 37...
Kf6 {[%clk 0:00:39.2]} 38. Rdd1 {[%clk 0:02:09.6]} 38... Bd6 {[%clk 0:00:39.3]}
39. Kd3 {[%clk 0:02:09.4]} 39... Kg5 {[%clk 0:00:39.9]} 40. Rdb1 {[%clk
0:02:08.7]} 40... Kf6 {[%clk 0:00:37.7]} 41. Ke2 {[%clk 0:02:00.1]} 41... Kg7
{[%clk 0:00:36.3]} 42. Kd3 {[%clk 0:01:59.1]} 42... Be7 {[%clk 0:00:37]} 43. Kc2
{[%clk 0:01:56.6]} 43... Kf8 {[%clk 0:00:36.7]} 44. Rd1 {[%clk 0:01:54.4]} 44...
Ke8 {[%clk 0:00:36.7]} 45. Kb3 {[%clk 0:01:53.8]} 45... Kd7 {[%clk 0:00:36.8]}
46. Rg1 {[%clk 0:01:46.8]} 46... Bg5 {[%clk 0:00:36.5]} 47. Rgf1 {[%clk
0:01:43.5]} 47... Kc6 {[%clk 0:00:37.1]} 48. Ra2 {[%clk 0:01:39.9]} 48... Kb6
{[%clk 0:00:38.2]} 49. Re2 {[%clk 0:01:35.7]} 49... Rc4 {[%clk 0:00:36.1]} 50.
Re5 {[%clk 0:01:26.9]} 50... Bf6 {[%clk 0:00:36.5]} 51. Re2 {[%clk 0:01:22]}
51... Bg5 {[%clk 0:00:36.6]} 52. Rb1 {[%clk 0:01:17.3]} 52... Ka5 {[%clk
0:00:36.8]} 53. Reb2 {[%clk 0:01:14.7]} 53... Be7 {[%clk 0:00:36.6]} 54. Ra1
{[%clk 0:01:10.8]} 54... Bf6 {[%clk 0:00:36.8]} 55. Re2 {[%clk 0:01:03.4]} 55...
Ra4 {[%clk 0:00:35.9]} 56. Rae1 {[%clk 0:00:56.7]} 56... Rc4 {[%clk 0:00:35.6]}
57. Rg1 {[%clk 0:00:53.4]} 57... Bg5 {[%clk 0:00:36.1]} 58. Re5 {[%clk
0:00:51.3]} 58... Bf6 {[%clk 0:00:36.8]} 59. g5 {[%clk 0:00:50.5]} 59... Bxe5
{[%clk 0:00:32]} 60. dxe5 {[%clk 0:00:50]} 60... hxg5 {[%clk 0:00:33.3]} 61. h6
{[%clk 0:00:47.4]} 61... Rc8 {[%clk 0:00:34.2]} 62. Rxg5 {[%clk 0:00:47.3]}
62... Rh8 {[%clk 0:00:35]} 63. Rh5 {[%clk 0:00:47.6]} 63... Rh7 {[%clk
0:00:33.8]} 64. Rh4 {[%clk 0:00:47]} 64... Kb6 {[%clk 0:00:33.6]} 65. Kc2 {[%clk
0:00:41]} 65... Kc5 {[%clk 0:00:32.8]} 66. Kd3 {[%clk 0:00:41.1]} 66... a5
{[%clk 0:00:30.5]} 67. Rh2 {[%clk 0:00:40.2]} 67... a4 {[%clk 0:00:30.2]} 68.
Rh4 {[%clk 0:00:39.4]} 68... Kb6 {[%clk 0:00:28.5]} 69. Kd4 {[%clk 0:00:36.6]}
69... Kc6 {[%clk 0:00:29.4]} 70. Rh2 {[%clk 0:00:35.9]} 70... Kb6 {[%clk
0:00:29.4]} 71. Rh4 {[%clk 0:00:37.4]} 71... Rh8 {[%clk 0:00:17.4]} 72. h7
{[%clk 0:00:36.9]} 72... Kc6 {[%clk 0:00:17.9]} 73. Rh2 {[%clk 0:00:35.7]} 73...
Kd7 {[%clk 0:00:17.8]} 74. Kc5 {[%clk 0:00:33.3]} 74... Ke7 {[%clk 0:00:16.2]}
75. Rh4 {[%clk 0:00:32.6]} 75... Kf8 {[%clk 0:00:16.1]} 76. Kxb5 {[%clk
0:00:31.8]} 76... Kg7 {[%clk 0:00:16.9]} 77. Kxa4 {[%clk 0:00:31.8]} 77... Ra8+
{[%clk 0:00:15.5]} 78. Kb4 {[%clk 0:00:30.9]} 78... Rb8+ {[%clk 0:00:16.3]} 79.
Kc5 {[%clk 0:00:30.9]} 79... Kh8 {[%clk 0:00:16.8]} 80. a4 {[%clk 0:00:30.7]}
80... Ra8 {[%clk 0:00:17.3]} 81. Rxf4 {[%clk 0:00:30.1]} 81... Kxh7 {[%clk
0:00:14]} 82. Rxf7+ {[%clk 0:00:30.2]} 82... Kg8 {[%clk 0:00:14.9]} 83. Rf6
{[%clk 0:00:29.6]} 83... Rxa4 {[%clk 0:00:13.5]} 84. Rxe6 {[%clk 0:00:28.7]}
84... Rc4+ {[%clk 0:00:12.8]} 85. Kxd5 {[%clk 0:00:28.1]} 85... Rxc3 {[%clk
0:00:14.7]} 86. f4 {[%clk 0:00:28.2]} 86... Kf7 {[%clk 0:00:15.3]} 87. Rf6+
{[%clk 0:00:27.6]} 87... Ke7 {[%clk 0:00:16.2]} 88. Ra6 {[%clk 0:00:27]} 88...
Rd3+ {[%clk 0:00:16.5]} 89. Ke4 {[%clk 0:00:27.2]} 89... Rd7 {[%clk 0:00:16.7]}
90. f5 {[%clk 0:00:26.3]} 90... Rb7 {[%clk 0:00:17.7]} 91. f6+ {[%clk
0:00:26.4]} 91... Kf7 {[%clk 0:00:15.3]} 92. Kf5 {[%clk 0:00:26.1]} 92... Kf8
{[%clk 0:00:14.6]} 93. Ra8+ {[%clk 0:00:25.3]} 1-0

[Event "*** Qualifier 3: Titled Tuesday 3|2 Blitz"]
[Site "Chess.com"]
[Date "2017.04.18"]
[Round "6"]
[White "Sanan_Sjugirov"]
[Black "XiaoKangZhong"]
[Result "1-0"]
[WhiteElo "2635"]
[BlackElo "1974"]
[TimeControl "180+2"]
[EndTime "14:14:48 PDT"]
[Termination "Sanan_Sjugirov won by checkmate"]

1. e4 {[%clk 0:03:02]} 1... c5 {[%clk 0:02:56.1]} 2. Nf3 {[%clk 0:03:02.6]} 2...
d6 {[%clk 0:02:56.6]} 3. d4 {[%clk 0:03:03.2]} 3... cxd4 {[%clk 0:02:57.1]} 4.
Nxd4 {[%clk 0:03:05.1]} 4... Nf6 {[%clk 0:02:57.7]} 5. Nc3 {[%clk 0:03:06.6]}
5... a6 {[%clk 0:02:58.7]} 6. Bg5 {[%clk 0:03:05.2]} 6... Nbd7 {[%clk
0:02:58.6]} 7. f4 {[%clk 0:03:04.8]} 7... Qc7 {[%clk 0:02:57.5]} 8. Qf3 {[%clk
0:03:04.5]} 8... h6 {[%clk 0:02:58.2]} 9. Bxf6 {[%clk 0:03:05.3]} 9... Nxf6
{[%clk 0:02:58.4]} 10. f5 {[%clk 0:03:06.7]} 10... e6 {[%clk 0:02:54.8]} 11.
O-O-O {[%clk 0:02:58]} 11... Be7 {[%clk 0:02:54]} 12. fxe6 {[%clk 0:02:50.1]}
12... fxe6 {[%clk 0:02:52.9]} 13. Qh3 {[%clk 0:02:50.6]} 13... e5 {[%clk
0:02:39.1]} 14. Ne6 {[%clk 0:02:49.8]} 14... Bxe6 {[%clk 0:02:37.5]} 15. Qxe6
{[%clk 0:02:50.4]} 15... Qd7 {[%clk 0:02:37.5]} 16. Qb3 {[%clk 0:02:49.7]} 16...
O-O-O {[%clk 0:02:34.9]} 17. Bc4 {[%clk 0:02:49.1]} 17... Kb8 {[%clk 0:02:34.8]}
18. Bxa6 {[%clk 0:02:48.6]} 18... Ka7 {[%clk 0:02:33.8]} 19. Bc4 {[%clk
0:02:48]} 19... Qg4 {[%clk 0:02:29.1]} 20. Nb5+ {[%clk 0:02:47]} 20... Kb8
{[%clk 0:02:28.2]} 21. Qa4 {[%clk 0:02:48.3]} 21... Nxe4 {[%clk 0:02:26.7]} 22.
Qa7+ {[%clk 0:02:42.8]} 22... Kc8 {[%clk 0:02:25.9]} 23. Qa8+ {[%clk 0:02:40.2]}
23... Kd7 {[%clk 0:02:26.7]} 24. Qxb7+ {[%clk 0:02:42.1]} 24... Ke8 {[%clk
0:02:27.9]} 25. Nc7+ {[%clk 0:02:43.3]} 25... Kf8 {[%clk 0:02:21.7]} 26. Rhf1+
{[%clk 0:02:43.3]} 26... Bf6 {[%clk 0:02:22.2]} 27. Ne6+ {[%clk 0:02:43.5]}
27... Ke8 {[%clk 0:02:23.2]} 28. Bb5+ {[%clk 0:02:44.1]} 28... Rd7 {[%clk
0:02:20.5]} 29. Qxd7# {[%clk 0:02:45.2]} 1-0

[Event "*** Qualifier 3: Titled Tuesday 3|2 Blitz"]
[Site "Chess.com"]
[Date "2017.04.18"]
[Round "6"]
[White "Rock700chess"]
[Black "Quiet_Desperation"]
[Result "1-0"]
[WhiteElo "2243"]
[BlackElo "2031"]
[TimeControl "180+2"]
[EndTime "14:15:28 PDT"]
[Termination "Rock700chess won by resignation"]

1. e4 {[%clk 0:03:02]} 1... Nc6 {[%clk 0:02:59.4]} 2. d4 {[%clk 0:03:02.8]} 2...
d5 {[%clk 0:03:00.1]} 3. e5 {[%clk 0:03:01.5]} 3... f6 {[%clk 0:02:56.5]} 4. f4
{[%clk 0:02:59.9]} 4... Bf5 {[%clk 0:02:56]} 5. Nf3 {[%clk 0:02:55.9]} 5... Qd7
{[%clk 0:02:51.2]} 6. a4 {[%clk 0:02:52.2]} 6... O-O-O {[%clk 0:02:51.4]} 7. a5
{[%clk 0:02:51.8]} 7... Nh6 {[%clk 0:02:49.5]} 8. a6 {[%clk 0:02:51.1]} 8... b6
{[%clk 0:02:48.4]} 9. Bb5 {[%clk 0:02:52.4]} 9... Qe6 {[%clk 0:02:43.3]} 10. O-O
{[%clk 0:02:51.2]} 10... Be4 {[%clk 0:02:39.7]} 11. Nbd2 {[%clk 0:02:48.9]}
11... Nf5 {[%clk 0:02:24]} 12. c3 {[%clk 0:02:48.1]} 12... Nb8 {[%clk
0:02:15.7]} 13. Qe2 {[%clk 0:02:45.3]} 13... Bxf3 {[%clk 0:02:10.4]} 14. Nxf3
{[%clk 0:02:47.2]} 14... h5 {[%clk 0:02:11.1]} 15. b4 {[%clk 0:02:42.9]} 15...
h4 {[%clk 0:02:06.2]} 16. Ba3 {[%clk 0:02:40]} 16... g6 {[%clk 0:02:01.9]} 17.
Rac1 {[%clk 0:02:38.8]} 17... c6 {[%clk 0:02:01.4]} 18. Bd3 {[%clk 0:02:37.4]}
18... Bh6 {[%clk 0:02:01.9]} 19. Nd2 {[%clk 0:02:32.6]} 19... Rdg8 {[%clk
0:01:56.8]} 20. b5 {[%clk 0:02:31.9]} 20... Qd7 {[%clk 0:01:48.2]} 21. bxc6
{[%clk 0:02:29.6]} 21... Qxc6 {[%clk 0:01:48.4]} 22. Bb5 {[%clk 0:02:29.4]}
22... Qe6 {[%clk 0:01:47.9]} 23. c4 {[%clk 0:02:29]} 23... Nxd4 {[%clk 0:01:48]}
24. cxd5+ {[%clk 0:02:28.2]} 24... Kd8 {[%clk 0:01:46.5]} 25. dxe6 {[%clk
0:02:27.9]} 1-0

[Event "*** Qualifier 3: Titled Tuesday 3|2 Blitz"]
[Site "Chess.com"]
[Date "2017.04.18"]
[Round "6"]
[White "oskariot"]
[Black "woodhy"]
[Result "1-0"]
[WhiteElo "2436"]
[BlackElo "2305"]
[TimeControl "180+2"]
[EndTime "14:15:37 PDT"]
[Termination "oskariot won by resignation"]

1. e4 {[%clk 0:03:02]} 1... e6 {[%clk 0:02:55.8]} 2. d4 {[%clk 0:03:02.8]} 2...
d5 {[%clk 0:02:56.7]} 3. Nc3 {[%clk 0:03:03.9]} 3... Bb4 {[%clk 0:02:57.7]} 4.
e5 {[%clk 0:03:05.1]} 4... c5 {[%clk 0:02:59]} 5. a3 {[%clk 0:03:06.7]} 5...
Bxc3+ {[%clk 0:03:00.3]} 6. bxc3 {[%clk 0:03:08.6]} 6... Ne7 {[%clk 0:03:02]} 7.
h4 {[%clk 0:03:10.2]} 7... Nbc6 {[%clk 0:03:02.6]} 8. h5 {[%clk 0:03:11.7]} 8...
Qa5 {[%clk 0:03:04.5]} 9. Bd2 {[%clk 0:03:10.6]} 9... Bd7 {[%clk 0:03:05.6]} 10.
h6 {[%clk 0:03:12.1]} 10... gxh6 {[%clk 0:03:06.5]} 11. Rb1 {[%clk 0:03:13.4]}
11... O-O-O {[%clk 0:03:08]} 12. Rb5 {[%clk 0:03:14.3]} 12... Qc7 {[%clk
0:03:09.1]} 13. Rxc5 {[%clk 0:03:14]} 13... Ng8 {[%clk 0:03:09.4]} 14. Nf3
{[%clk 0:03:07.8]} 14... f5 {[%clk 0:03:09.9]} 15. Qb1 {[%clk 0:02:44.4]} 15...
b5 {[%clk 0:02:57.3]} 16. Bxb5 {[%clk 0:02:38.9]} 16... Qb6 {[%clk 0:02:50]} 17.
O-O {[%clk 0:02:17.7]} 17... Kc7 {[%clk 0:02:47.9]} 18. c4 {[%clk 0:02:14.1]}
18... Ne7 {[%clk 0:02:40.4]} 19. cxd5 {[%clk 0:02:11.8]} 19... Nxd5 {[%clk
0:02:35.7]} 20. c4 {[%clk 0:02:08.5]} 20... Ne7 {[%clk 0:02:31.7]} 21. Bxc6
{[%clk 0:01:50.1]} 21... Nxc6 {[%clk 0:02:11.8]} 22. Ba5 {[%clk 0:01:47.4]}
22... Qxa5 {[%clk 0:02:12.7]} 23. Rxa5 {[%clk 0:01:48.3]} 23... Nxa5 {[%clk
0:02:14.6]} 24. Qb4 {[%clk 0:01:49.7]} 24... Nc6 {[%clk 0:02:13.6]} 25. Qd6+
{[%clk 0:01:51.1]} 25... Kc8 {[%clk 0:02:14]} 26. d5 {[%clk 0:01:52.7]} 1-0

[Event "*** Qualifier 3: Titled Tuesday 3|2 Blitz"]
[Site "Chess.com"]
[Date "2017.04.18"]
[Round "6"]
[White "scrapnel"]
[Black "Astaneh"]
[Result "1-0"]
[WhiteElo "2394"]
[BlackElo "2481"]
[TimeControl "180+2"]
[EndTime "14:17:01 PDT"]
[Termination "scrapnel won by resignation"]

1. c4 {[%clk 0:03:02]} 1... e5 {[%clk 0:02:55.7]} 2. Nc3 {[%clk 0:03:03]} 2...
Nf6 {[%clk 0:02:54.8]} 3. Nf3 {[%clk 0:03:03.2]} 3... Nc6 {[%clk 0:02:55.2]} 4.
e3 {[%clk 0:03:04.4]} 4... d5 {[%clk 0:02:51.6]} 5. cxd5 {[%clk 0:03:04.5]} 5...
Nxd5 {[%clk 0:02:53.5]} 6. Bb5 {[%clk 0:03:04.1]} 6... Nxc3 {[%clk 0:02:52.1]}
7. bxc3 {[%clk 0:03:03.9]} 7... Bd6 {[%clk 0:02:53]} 8. d4 {[%clk 0:03:03.2]}
8... exd4 {[%clk 0:02:47.2]} 9. cxd4 {[%clk 0:03:00.2]} 9... O-O {[%clk
0:02:47]} 10. O-O {[%clk 0:02:58.8]} 10... Bg4 {[%clk 0:02:46.1]} 11. h3 {[%clk
0:02:59.1]} 11... Bh5 {[%clk 0:02:47.2]} 12. Bb2 {[%clk 0:02:55.9]} 12... Qf6
{[%clk 0:02:37.6]} 13. Be2 {[%clk 0:02:55.9]} 13... Rfe8 {[%clk 0:02:27.3]} 14.
Qb3 {[%clk 0:02:47.9]} 14... b6 {[%clk 0:02:16.7]} 15. Rac1 {[%clk 0:02:40.3]}
15... Ne7 {[%clk 0:02:07.4]} 16. e4 {[%clk 0:02:28.9]} 16... Bf4 {[%clk
0:02:01.7]} 17. e5 {[%clk 0:02:19.2]} 17... Qg6 {[%clk 0:01:36.5]} 18. Rxc7
{[%clk 0:02:18.8]} 18... Nf5 {[%clk 0:01:37.9]} 19. Rxf7 {[%clk 0:02:01]} 19...
Bxf3 {[%clk 0:01:27.4]} 20. Rxf5+ {[%clk 0:01:57.1]} 20... Kh8 {[%clk
0:01:27.3]} 21. Bxf3 {[%clk 0:01:53.9]} 21... Qxf5 {[%clk 0:01:28.9]} 22. Bxa8
{[%clk 0:01:54.1]} 22... Rxa8 {[%clk 0:01:30.8]} 23. Qf3 {[%clk 0:01:51.2]}
23... Rf8 {[%clk 0:01:29.3]} 24. Bc1 {[%clk 0:01:38.7]} 24... g5 {[%clk
0:01:15.7]} 25. Bxf4 {[%clk 0:01:38]} 25... gxf4 {[%clk 0:01:17.1]} 26. Re1
{[%clk 0:01:38.2]} 26... Rg8 {[%clk 0:01:16.8]} 27. e6 {[%clk 0:01:38]} 1-0

[Event "*** Qualifier 3: Titled Tuesday 3|2 Blitz"]
[Site "Chess.com"]
[Date "2017.04.18"]
[Round "6"]
[White "Wolverine_master"]
[Black "Robin-Side"]
[Result "0-1"]
[WhiteElo "1957"]
[BlackElo "2297"]
[TimeControl "180+2"]
[EndTime "14:17:50 PDT"]
[Termination "Robin-Side won by resignation"]

1. e4 {[%clk 0:02:32.2]} 1... c5 {[%clk 0:02:59.4]} 2. Nf3 {[%clk 0:02:32.8]}
2... Nc6 {[%clk 0:03:00.5]} 3. d4 {[%clk 0:02:34.7]} 3... cxd4 {[%clk 0:03:02]}
4. Nxd4 {[%clk 0:02:36.5]} 4... e5 {[%clk 0:03:03.4]} 5. Nb5 {[%clk 0:02:37.1]}
5... d6 {[%clk 0:03:04.3]} 6. N1c3 {[%clk 0:02:38.1]} 6... a6 {[%clk 0:03:05.6]}
7. Na3 {[%clk 0:02:39.8]} 7... b5 {[%clk 0:03:07.1]} 8. Nd5 {[%clk 0:02:41.4]}
8... Nge7 {[%clk 0:03:08.6]} 9. Bg5 {[%clk 0:02:38.8]} 9... h6 {[%clk
0:03:08.2]} 10. Bxe7 {[%clk 0:02:36.7]} 10... Bxe7 {[%clk 0:03:03.1]} 11. Nxe7
{[%clk 0:02:25.7]} 11... Nxe7 {[%clk 0:03:01.1]} 12. Bd3 {[%clk 0:02:27.1]}
12... O-O {[%clk 0:02:57.8]} 13. c3 {[%clk 0:02:28.6]} 13... d5 {[%clk
0:02:46.3]} 14. Nc2 {[%clk 0:02:17.3]} 14... Bb7 {[%clk 0:02:40.8]} 15. exd5
{[%clk 0:02:04.7]} 15... Nxd5 {[%clk 0:02:35.5]} 16. O-O {[%clk 0:01:57.9]}
16... Nf4 {[%clk 0:02:33.5]} 17. Be2 {[%clk 0:01:54.8]} 17... Bxg2 {[%clk
0:02:29.6]} 18. Qxd8 {[%clk 0:01:54.1]} 18... Raxd8 {[%clk 0:02:27.5]} 19. Rfe1
{[%clk 0:01:55.3]} 19... Rd2 {[%clk 0:02:15.3]} 20. Ne3 {[%clk 0:01:49.3]} 20...
Nxe2+ {[%clk 0:02:05.8]} 21. Kxg2 {[%clk 0:01:48.2]} 21... Nf4+ {[%clk
0:02:06.7]} 22. Kf3 {[%clk 0:01:48.2]} 22... Nd3 {[%clk 0:01:44.3]} 23. Rf1
{[%clk 0:01:06.6]} 23... Rxb2 {[%clk 0:01:42.3]} 24. Ke4 {[%clk 0:01:04.5]}
24... Nxf2+ {[%clk 0:01:39]} 25. Kxe5 {[%clk 0:01:05.2]} 25... Re8+ {[%clk
0:01:31.8]} 26. Kf4 {[%clk 0:00:38.6]} 26... Nh3+ {[%clk 0:01:29.9]} 27. Kf3
{[%clk 0:00:37.4]} 27... Ng5+ {[%clk 0:01:29.9]} 0-1

[Event "*** Qualifier 3: Titled Tuesday 3|2 Blitz"]
[Site "Chess.com"]
[Date "2017.04.18"]
[Round "6"]
[White "MFBerna"]
[Black "peteseeger"]
[Result "1-0"]
[WhiteElo "2188"]
[BlackElo "2124"]
[TimeControl "180+2"]
[EndTime "14:17:52 PDT"]
[Termination "MFBerna won by resignation"]

1. e4 {[%clk 0:03:02]} 1... g6 {[%clk 0:02:57.6]} 2. d4 {[%clk 0:03:01.6]} 2...
Bg7 {[%clk 0:02:57.9]} 3. Nc3 {[%clk 0:03:01.7]} 3... c6 {[%clk 0:02:58.5]} 4.
Nf3 {[%clk 0:02:58.9]} 4... d6 {[%clk 0:02:58]} 5. h3 {[%clk 0:02:58.4]} 5...
Nf6 {[%clk 0:02:57.7]} 6. Bd3 {[%clk 0:02:55.9]} 6... O-O {[%clk 0:02:55.1]} 7.
O-O {[%clk 0:02:55.8]} 7... Qc7 {[%clk 0:02:55.2]} 8. Bf4 {[%clk 0:02:53.1]}
8... Nbd7 {[%clk 0:02:50.7]} 9. e5 {[%clk 0:02:53.5]} 9... dxe5 {[%clk 0:02:50]}
10. Nxe5 {[%clk 0:02:55.4]} 10... Nxe5 {[%clk 0:02:50.4]} 11. Bxe5 {[%clk
0:02:55]} 11... Qb6 {[%clk 0:02:51.1]} 12. Qf3 {[%clk 0:02:54]} 12... Qxb2
{[%clk 0:02:43.5]} 13. Ne2 {[%clk 0:02:49.6]} 13... Qa3 {[%clk 0:02:04.9]} 14.
Rab1 {[%clk 0:02:46.4]} 14... Qxa2 {[%clk 0:02:02]} 15. c4 {[%clk 0:02:41.2]}
15... Qa5 {[%clk 0:02:01.3]} 16. Nf4 {[%clk 0:02:38.7]} 16... Ne8 {[%clk
0:01:29.8]} 17. Rfe1 {[%clk 0:02:37.5]} 17... Nd6 {[%clk 0:01:28.5]} 18. Bxg7
{[%clk 0:02:34.2]} 18... Kxg7 {[%clk 0:01:28.5]} 19. Rxe7 {[%clk 0:02:35.6]}
19... Bf5 {[%clk 0:01:27]} 20. c5 {[%clk 0:02:31.1]} 20... Bxd3 {[%clk
0:01:25.3]} 21. Nxd3 {[%clk 0:02:31.4]} 21... Nf5 {[%clk 0:01:26]} 22. Rexb7
{[%clk 0:02:31.4]} 22... Nxd4 {[%clk 0:01:20.8]} 23. Qe3 {[%clk 0:02:32]} 23...
Qc3 {[%clk 0:01:16.6]} 24. Rc1 {[%clk 0:02:20]} 24... Nc2 {[%clk 0:00:59]} 25.
Qe2 {[%clk 0:02:09.6]} 25... Rad8 {[%clk 0:00:56.8]} 26. Nf4 {[%clk 0:01:58.7]}
26... Rd2 {[%clk 0:00:49.7]} 27. Qe7 {[%clk 0:01:46.2]} 27... Kg8 {[%clk
0:00:41]} 28. Ne6 {[%clk 0:01:41]} 1-0

[Event "*** Qualifier 3: Titled Tuesday 3|2 Blitz"]
[Site "Chess.com"]
[Date "2017.04.18"]
[Round "6"]
[White "Blitzstream"]
[Black "VMikhalevski"]
[Result "0-1"]
[WhiteElo "2469"]
[BlackElo "2564"]
[TimeControl "180+2"]
[EndTime "14:18:07 PDT"]
[Termination "VMikhalevski won by checkmate"]

1. d4 {[%clk 0:03:02]} 1... Nf6 {[%clk 0:02:58.9]} 2. Bg5 {[%clk 0:03:03]} 2...
Ne4 {[%clk 0:02:59]} 3. Bh4 {[%clk 0:03:04.4]} 3... c5 {[%clk 0:02:58]} 4. f3
{[%clk 0:03:05.9]} 4... g5 {[%clk 0:02:58.8]} 5. fxe4 {[%clk 0:03:07.8]} 5...
gxh4 {[%clk 0:02:59.9]} 6. e3 {[%clk 0:03:09.7]} 6... Nc6 {[%clk 0:02:48.2]} 7.
Nf3 {[%clk 0:03:08.3]} 7... Bh6 {[%clk 0:02:45.9]} 8. d5 {[%clk 0:03:04.1]} 8...
Nb8 {[%clk 0:02:43.6]} 9. Nxh4 {[%clk 0:02:44.2]} 9... Bxe3 {[%clk 0:02:41.6]}
10. Nf5 {[%clk 0:02:43.9]} 10... Bf4 {[%clk 0:02:40.6]} 11. Nd2 {[%clk
0:01:20.5]} 11... e6 {[%clk 0:02:33.3]} 12. Ng7+ {[%clk 0:01:12.8]} 12... Kf8
{[%clk 0:02:33.8]} 13. Nh5 {[%clk 0:01:14.5]} 13... Qh4+ {[%clk 0:02:21.2]} 14.
g3 {[%clk 0:01:10.3]} 14... Bxd2+ {[%clk 0:02:21.9]} 15. Kxd2 {[%clk 0:01:04.5]}
15... Qxe4 {[%clk 0:02:22.3]} 16. Bd3 {[%clk 0:00:50.4]} 16... Qxd5 {[%clk
0:02:22.1]} 17. Qg4 {[%clk 0:00:48.9]} 17... Nc6 {[%clk 0:02:15]} 18. Qg7+
{[%clk 0:00:47.6]} 18... Ke7 {[%clk 0:02:15]} 19. Qf6+ {[%clk 0:00:38.2]} 19...
Kd6 {[%clk 0:02:15.6]} 20. Qxh8 {[%clk 0:00:30.7]} 20... Qxh5 {[%clk 0:02:16.4]}
21. Raf1 {[%clk 0:00:24.3]} 21... f5 {[%clk 0:02:10.7]} 22. Qf8+ {[%clk
0:00:22.5]} 22... Ne7 {[%clk 0:02:06.4]} 23. g4 {[%clk 0:00:20.4]} 23... Qg5+
{[%clk 0:02:03.9]} 24. Kd1 {[%clk 0:00:18.4]} 24... b6 {[%clk 0:02:03.7]} 25.
gxf5 {[%clk 0:00:15.6]} 25... Bb7 {[%clk 0:02:04.6]} 26. Qf7 {[%clk 0:00:12.9]}
26... Bxh1 {[%clk 0:02:02.7]} 27. Rxh1 {[%clk 0:00:14.8]} 27... Nxf5 {[%clk
0:02:00]} 28. Re1 {[%clk 0:00:15]} 28... Ne3+ {[%clk 0:01:58.1]} 29. Kd2 {[%clk
0:00:16.1]} 29... Nc4+ {[%clk 0:01:50.1]} 30. Kc3 {[%clk 0:00:14.9]} 30... Qd2+
{[%clk 0:01:46]} 31. Kxc4 {[%clk 0:00:16.3]} 31... Qb4# {[%clk 0:01:46.3]} 0-1

[Event "*** Qualifier 3: Titled Tuesday 3|2 Blitz"]
[Site "Chess.com"]
[Date "2017.04.18"]
[Round "6"]
[White "Outsmiter"]
[Black "chesstatour"]
[Result "0-1"]
[WhiteElo "2065"]
[BlackElo "1962"]
[TimeControl "180+2"]
[EndTime "14:18:12 PDT"]
[Termination "chesstatour won by resignation"]

1. e4 {[%clk 0:03:02]} 1... c6 {[%clk 0:03:00.2]} 2. d3 {[%clk 0:03:01.1]} 2...
d5 {[%clk 0:03:01.5]} 3. Nd2 {[%clk 0:03:02.7]} 3... e5 {[%clk 0:02:56.4]} 4.
Ngf3 {[%clk 0:03:03.8]} 4... Qc7 {[%clk 0:02:56.3]} 5. g3 {[%clk 0:03:04.9]}
5... Bc5 {[%clk 0:02:55.4]} 6. Bg2 {[%clk 0:03:05.6]} 6... Nf6 {[%clk
0:02:55.7]} 7. O-O {[%clk 0:03:06.4]} 7... O-O {[%clk 0:02:54.9]} 8. c3 {[%clk
0:03:05.2]} 8... dxe4 {[%clk 0:02:54.2]} 9. dxe4 {[%clk 0:03:02.4]} 9... Bg4
{[%clk 0:02:39.7]} 10. Qc2 {[%clk 0:03:00.2]} 10... Nbd7 {[%clk 0:02:30.8]} 11.
b4 {[%clk 0:02:54.5]} 11... Bb6 {[%clk 0:02:22.9]} 12. h3 {[%clk 0:02:53]} 12...
Bh5 {[%clk 0:02:23.3]} 13. Nh4 {[%clk 0:02:49.3]} 13... Rad8 {[%clk 0:02:07.1]}
14. a4 {[%clk 0:02:45.3]} 14... a5 {[%clk 0:02:05.9]} 15. Nb3 {[%clk 0:02:35.1]}
15... Rfe8 {[%clk 0:01:53.6]} 16. Bg5 {[%clk 0:02:18.8]} 16... Bg6 {[%clk
0:01:20.6]} 17. Nxg6 {[%clk 0:02:18.3]} 17... hxg6 {[%clk 0:01:19.2]} 18. Rfd1
{[%clk 0:02:14.5]} 18... Nf8 {[%clk 0:01:19.9]} 19. Rxd8 {[%clk 0:02:10.4]}
19... Rxd8 {[%clk 0:01:21.8]} 20. Rd1 {[%clk 0:02:11.5]} 20... Ne6 {[%clk
0:01:18.1]} 21. Bxf6 {[%clk 0:02:05.1]} 21... gxf6 {[%clk 0:01:17.7]} 22. Rd3
{[%clk 0:01:58.4]} 22... Kg7 {[%clk 0:01:08]} 23. Qd2 {[%clk 0:01:55.6]} 23...
Rxd3 {[%clk 0:01:06]} 24. Qxd3 {[%clk 0:01:57.5]} 24... axb4 {[%clk 0:01:04.2]}
25. cxb4 {[%clk 0:01:57.5]} 25... Bd4 {[%clk 0:00:57.6]} 26. Bf3 {[%clk
0:01:53.8]} 26... Qb6 {[%clk 0:00:52.6]} 27. Qd2 {[%clk 0:01:48.7]} 27... c5
{[%clk 0:00:30.3]} 28. b5 {[%clk 0:01:23.9]} 28... c4 {[%clk 0:00:28.6]} 29. h4
{[%clk 0:01:17.5]} 29... cxb3 {[%clk 0:00:27.5]} 0-1